bitfinex-derivatives/quotes_ETHF0:USTF0_20240913
["timestamp","ask_amount","ask_price","bid_price","bid_amount"]
[1726190596595,1.58749321,2354.9,2354.7,0.42465]
[1726190596782,0.20749321,2354.9,2354.7,0.42465]
[1726190596979,0.42462,2354.9,2354.7,0.42465]
[1726190597178,0.21162941,2354.8,2354.7,0.42465]
[1726190597377,0.21162941,2354.8,2354.6,0.3789]
[1726190597378,0.42462,2354.9,2354.6,0.80357]
[1726190597785,4.4141,2355.0,2354.6,0.3789]
[1726190597985,3.6163,2355.0,2354.7,1.38]
[1726190598187,0.4085,2355.2,2354.8,0.42463]
[1726190598397,0.42459,2355.1,2354.9,1.1434]
[1726190599291,0.4085,2355.2,2354.9,1.56802]
[1726190599598,0.42459,2355.1,2354.9,1.1434]
[1726190599783,0.42459,2355.1,2354.9,1.56801]
[1726190600496,0.4085,2355.2,2355.1,0.42458]
[1726190600792,0.4085,2355.2,2354.9,1.1434]
[1726190600793,4.5878,2355.3,2355.2,0.42457]
[1726190600983,4.5878,2355.3,2354.9,2.25514574]
[1726190600984,3.2078,2355.3,2355.1,1.80457]
[1726190601389,3.2078,2355.3,2355.2,0.3931]
[1726190601587,3.2078,2355.3,2355.2,0.81767]
[1726190602791,1.38,2355.4,2355.2,0.81767]
[1726190603095,1.38,2355.4,2355.3,0.81865]
[1726190603295,0.3834,2355.5,2355.3,1.19365]
[1726190603599,0.80791,2355.5,2355.3,1.19365]
[1726190603791,0.3834,2355.5,2355.4,0.42453]
[1726190605791,0.3834,2355.5,2355.3,1.19364]
[1726190606186,0.3834,2355.5,2355.4,0.42453]
[1726190606388,0.3834,2355.5,2355.3,1.19364]
[1726190607591,1.38,2355.6,2355.3,1.19364]
[1726190608892,1.8045,2355.6,2355.3,1.19364]
[1726190609296,5.59548086,2355.7,2355.5,0.42451]
[1726190609487,0.42445,2355.9,2355.6,0.81289]
[1726190609684,0.80043,2356.0,2355.7,1.18817]
[1726190609889,0.376,2356.0,2355.8,0.42446]
[1726190610291,0.80042,2356.0,2355.9,0.3884]
[1726190611899,0.99586311,2356.0,2355.9,0.3884]
[1726190612200,0.99586311,2356.0,2355.4,3.2078]
[1726190612201,6.19624311,2356.0,2355.4,3.2078]
[1726190612391,1.38,2355.5,2355.3,4.34975]
[1726190612589,0.4087,2355.4,2355.3,4.34975]
[1726190612896,0.4087,2355.4,2355.3,0.42455]
[1726190613988,1.782,2355.6,2355.3,0.42455]
[1726190614297,2.1907,2355.6,2355.3,0.42455]
[1726190616196,1.7887,2355.6,2355.3,0.42455]
[1726190617291,2.40723618,2355.6,2355.3,0.42455]
[1726190618597,2.21319,2355.6,2355.3,0.42455]
[1726190619291,1.7887,2355.6,2355.4,0.42453]
[1726190619792,1.7887,2355.6,2355.5,0.3967]
[1726190620090,0.4087,2355.6,2355.5,0.3967]
[1726190622502,1.479,2355.9,2355.7,0.42447]
[1726190622698,1.7877,2355.9,2355.7,0.42447]
[1726190622900,1.7877,2355.9,2355.8,0.4035]
[1726190623413,2.21214,2355.9,2355.8,0.4035]
[1726190624092,2.40752066,2355.9,2355.8,0.4035]
[1726190625100,2.40752066,2355.9,2355.6,1.20598]
[1726190625101,6.22788066,2355.9,2355.5,0.42451]
[1726190625304,1.38,2355.7,2355.5,0.42451]
[1726190625601,2.19537,2355.8,2355.5,0.42451]
[1726190625802,2.19537,2355.8,2355.6,0.3837]
[1726190626303,1.7709,2355.8,2355.6,1.21249]
[1726190626610,0.81536,2355.8,2355.6,0.788]
[1726190626999,0.3909,2355.8,2355.6,1.21249]
[1726190627208,0.81536,2355.8,2355.6,1.21249]
[1726190627504,0.81536,2355.8,2355.6,0.788]
[1726190628208,0.81536,2355.8,2355.6,1.21249]
[1726190628710,0.81536,2355.8,2355.6,0.788]
[1726190629607,2.19536,2355.8,2355.6,0.788]
[1726190631199,2.19536,2355.8,2355.5,0.4245]
[1726190632007,1.8045,2355.6,2355.4,0.3844]
[1726190632307,0.3815,2355.5,2355.3,1.18404]
[1726190632507,0.7864,2355.5,2355.3,1.18404]
[1726190633095,0.7864,2355.5,2355.1,0.42458]
[1726190633096,1.38,2355.4,2355.1,0.42458]
[1726190633308,1.7717,2355.4,2355.1,0.3924]
[1726190633505,0.3917,2355.4,2355.1,0.3924]
[1726190634002,0.3917,2355.4,2355.2,0.42457]
[1726190634203,0.3917,2355.4,2355.1,0.3924]
[1726190634407,0.3917,2355.4,2355.3,0.42455]
[1726190635914,0.3917,2355.4,2355.2,0.42455]
[1726190636508,3.6127,2355.5,2355.2,4.2456]
[1726190636712,3.6127,2355.5,2355.2,1.38]
[1726190636713,0.4049,2355.5,2355.2,1.38]
[1726190636912,0.7853,2355.8,2355.5,0.42451]
[1726190637211,0.4034,2355.7,2355.5,0.42451]
[1726190637911,1.7834,2355.7,2355.4,1.60012]
[1726190638412,2.20788,2355.7,2355.4,1.60012]
[1726190638609,1.7834,2355.7,2355.4,1.60012]
[1726190640418,1.7834,2355.7,2355.5,0.42451]
[1726190641217,0.4034,2355.7,2355.5,0.42451]
[1726190644512,0.82788,2355.7,2355.4,1.60012]
[1726190644919,0.82788,2355.7,2355.5,0.42451]
[1726190645220,0.4034,2355.7,2355.5,0.42451]
[1726190645820,0.82788,2355.7,2355.4,1.60012]
[1726190646116,0.4245,2355.6,2355.4,1.1756]
[1726190646320,0.42452,2355.5,2355.2,2.49174574]
[1726190646515,0.42452,2355.5,2355.2,1.11174574]
[1726190646818,0.3989,2355.4,2355.2,1.11174574]
[1726190647436,0.3989,2355.4,2355.3,1.53629574]
[1726190648523,0.3989,2355.4,2355.3,0.42455]
[1726190656418,0.3989,2355.4,2355.3,1.53629574]
[1726190656624,3.63231,2355.6,2355.5,0.42451]
[1726190656625,3.2078,2355.6,2355.5,0.42451]
[1726190656924,0.099,2355.9,2355.5,12.56251333]
[1726190657116,0.3694,2356.0,2355.8,0.42446]
[1726190657319,0.3694,2356.0,2355.9,0.3937]
[1726190658128,0.79382,2356.0,2355.9,0.3937]
[1726190658921,0.3694,2356.0,2355.9,0.3937]
[1726190659314,0.42442,2356.1,2355.9,0.81813]
[1726190659523,0.3694,2356.1,2355.9,0.81813]
[1726190660016,0.7938,2356.1,2355.9,0.81813]
[1726190662330,0.3694,2356.1,2355.9,0.81813]
[1726190664426,0.79381,2356.1,2355.9,0.81813]
[1726190666133,0.3694,2356.1,2355.9,0.81813]
[1726190666722,0.7938,2356.1,2355.9,0.81813]
[1726190667125,3.3068,2356.5,2355.9,3.6015]
[1726190667322,3.3068,2356.5,2356.2,0.42437]
[1726190667323,0.3749,2356.3,2356.2,0.42437]
[1726190667532,0.59249072,2356.3,2356.2,0.42437]
[1726190668631,0.3749,2356.3,2356.2,0.42437]
[1726190678841,5.99016597,2356.5,2356.3,0.42436]
[1726190679436,5.99016597,2356.5,2356.0,2.1591]
[1726190679437,3.40692597,2356.5,2356.4,0.42435]
[1726190679637,3.2078,2356.5,2356.4,1.80435]
[1726190679839,0.3823,2356.6,2356.5,0.42433]
[1726190680038,0.80661,2356.6,2356.5,0.42433]
[1726190680452,0.80661,2356.6,2356.4,1.38]
[1726190680852,0.80661,2356.6,2356.4,1.80434]
[1726190681760,0.80661,2356.6,2356.5,0.3987]
[1726190683450,0.80661,2356.6,2356.4,1.80434]
[1726190683451,0.42433,2356.5,2356.4,1.38]
[1726190683753,0.42433,2356.5,2356.3,0.42436]
[1726190684154,0.80663,2356.6,2356.4,0.42435]
[1726190684357,0.80662,2356.6,2356.4,0.42435]
[1726190685558,0.42433,2356.5,2356.3,0.42436]
[1726190685764,0.80663,2356.6,2356.4,0.42435]
[1726190687564,0.80663,2356.6,2356.5,0.4074]
[1726190687966,0.42434,2356.5,2356.3,1.80436]
[1726190688766,0.42434,2356.5,2356.4,0.4074]
[1726190689462,0.42436,2356.4,2356.2,0.42437]
[1726190689659,0.81406,2356.4,2356.2,0.42437]
[1726190689855,0.3837,2356.3,2356.2,0.42437]
[1726190691259,0.7735,2356.3,2356.1,1.7874]
[1726190691464,1.19787,2356.3,2356.1,0.8318]
[1726190692565,0.7735,2356.3,2356.2,0.42439]
[1726190693965,1.19787,2356.3,2356.1,0.83179]
[1726190694670,1.3995029,2356.3,2356.1,0.83179]
[1726190697273,0.42434,2356.5,2356.3,0.42436]
[1726190697470,0.42434,2356.5,2356.1,1.7874]
[1726190697471,0.82483,2356.5,2356.4,0.3907]
[1726190699175,5.06883,2356.5,2356.4,0.3907]
[1726190699373,0.82483,2356.5,2356.4,0.3907]
[1726190700770,5.06883,2356.5,2356.4,0.3907]
[1726190701175,0.82483,2356.5,2356.4,0.3907]
[1726190701376,5.06883,2356.5,2356.4,0.3907]
[1726190701576,0.82483,2356.5,2356.4,0.3907]
[1726190702775,0.42437,2356.4,2356.1,1.38]
[1726190702987,0.42437,2356.4,2356.0,0.7791]
[1726190702988,4.26868,2356.4,2356.0,0.7791]
[1726190703172,0.4244,2356.2,2356.0,1.1599]
[1726190703477,0.7674,2356.3,2356.0,1.1599]
[1726190703674,0.3955,2356.1,2356.0,1.1599]
[1726190704281,0.3955,2356.1,2356.0,1.58432]
[1726190708079,3.63216,2356.4,2356.0,1.1599]
[1726190708382,3.63216,2356.4,2356.2,0.42438]
[1726190708383,3.2078,2356.4,2356.2,0.42438]
[1726190708781,3.2078,2356.4,2356.3,0.4067]
[1726190708782,3.63215,2356.4,2356.3,0.4067]
[1726190709570,4.02155,2356.4,2356.3,0.4067]
[1726190710179,0.42437,2356.3,2356.1,0.4244]
[1726190710385,0.42437,2356.3,2356.1,0.8311]
[1726190710883,0.81376,2356.4,2356.1,0.8311]
[1726190712381,0.81376,2356.4,2356.2,0.42438]
[1726190712694,3.2078,2356.4,2356.2,1.38]
[1726190712878,3.63215,2356.4,2356.2,1.80437]
[1726190713383,0.42435,2356.4,2356.2,1.80437]
[1726190714289,0.42434,2356.5,2356.3,0.42436]
[1726190714490,0.42434,2356.5,2356.4,0.38]
[1726190714784,0.42434,2356.5,2356.4,1.1951]
[1726190715483,0.42434,2356.5,2356.4,0.4078]
[1726190715680,0.42436,2356.4,2356.2,1.80438]
[1726190715987,0.5812763,2356.6,2356.2,1.80438]
[1726190716190,0.3709,2356.3,2356.2,1.80438]
[1726190718884,3.5787,2356.3,2356.2,1.80438]
[1726190719081,0.3709,2356.3,2356.2,1.80438]
[1726190719983,0.3709,2356.3,2356.2,0.42438]
[1726190723491,0.3709,2356.3,2356.2,1.80438]
[1726190723790,0.42436,2356.4,2356.2,1.80438]
[1726190723986,0.42436,2356.4,2356.3,0.4051]
[1726190724793,0.3913,2356.6,2356.3,0.82947]
[1726190725293,0.42433,2356.5,2356.4,0.3875]
[1726190726890,0.59089488,2356.6,2356.4,0.3875]
[1726190727091,0.59089488,2356.6,2356.5,0.80813]
[1726190727092,0.3913,2356.6,2356.5,0.80813]
[1726190728697,0.81561,2356.6,2356.5,0.80813]
[1726190729897,0.3913,2356.6,2356.5,0.80813]
[1726190730998,3.8336161,2356.7,2356.6,0.42431]
[1726190731994,3.4093061,2356.7,2356.6,0.42431]
[1726190732195,3.8336061,2356.7,2356.6,0.42431]
[1726190732395,3.8336061,2356.7,2356.5,0.3838]
[1726190732396,3.8336061,2356.7,2356.5,0.80812]
[1726190732892,3.4093061,2356.7,2356.6,0.42431]
[1726190733191,3.8336061,2356.7,2356.6,0.42431]
[1726190733582,3.8336061,2356.7,2356.5,0.80812]
[1726190734593,0.6258061,2356.7,2356.5,0.80812]
[1726190736892,0.6258061,2356.7,2356.6,0.42431]
[1726190736893,0.2015061,2356.7,2356.6,0.42431]
[1726190737096,0.4243,2356.7,2356.5,0.80812]
[1726190739105,0.4243,2356.7,2356.6,0.42431]
[1726190739311,3.7842331,2356.8,2356.6,0.42431]
[1726190739804,4.2085131,2356.8,2356.7,0.3977]
[1726190741796,1.0007131,2356.8,2356.7,0.3977]
[1726190742398,1.0007131,2356.8,2356.7,0.7911]
[1726190743301,0.3778,2356.8,2356.7,1.2154]
[1726190745200,0.42427,2356.9,2356.7,1.2154]
[1726190745201,0.42425,2357.0,2356.8,0.42428]
[1726190745401,0.4068,2357.0,2356.8,0.42428]
[1726190745605,1.02626621,2357.0,2356.8,0.42428]
[1726190746196,0.4068,2357.0,2356.9,0.42426]
[1726190746408,1.2975,2357.3,2356.9,0.3708]
[1726190746608,1.6053,2357.3,2357.2,1.38]
[1726190746807,1.6053,2357.3,2357.1,0.42422]
[1726190747000,1.80124507,2357.3,2357.1,0.42422]
[1726190748901,1.80124507,2357.3,2357.1,0.82002]
[1726190751004,0.42421,2357.2,2357.1,0.3958]
[1726190751208,1.80124507,2357.3,2357.1,0.82002]
[1726190751708,2.76990419,2357.3,2357.1,0.82002]
[1726190752102,1.80124507,2357.3,2357.1,0.82002]
[1726190752814,1.37704507,2357.3,2357.0,0.393]
[1726190753003,4.5878,2357.1,2356.6,3.9252]
[1726190753199,1.80428,2356.8,2356.6,3.9252]
[1726190753398,1.1786,2356.7,2356.6,3.9252]
[1726190754211,1.1786,2356.7,2356.6,4.34951]
[1726190754607,1.1786,2356.7,2356.6,3.9252]
[1726190755510,1.1786,2356.7,2356.5,5.38412]
[1726190756814,0.42427,2356.9,2356.6,0.42431]
[1726190757009,0.79775,2357.0,2356.8,1.38]
[1726190757215,0.79775,2357.0,2356.9,0.4095]
[1726190760213,0.3735,2357.0,2356.9,0.4095]
[1726190760410,0.42422,2357.2,2356.9,2.21375]
[1726190760616,0.61807699,2357.2,2356.9,2.21375]
[1726190760914,0.61807699,2357.2,2356.9,0.4095]
[1726190760915,0.42423,2357.1,2356.9,0.4095]
[1726190761615,0.82254,2357.0,2356.9,0.4095]
[1726190761810,0.3983,2357.0,2356.9,0.4095]
[1726190763415,0.82254,2357.0,2356.9,0.4095]
[1726190763716,0.3983,2357.0,2356.9,0.4095]
[1726190764711,0.82254,2357.0,2356.9,0.4095]
[1726190765918,0.82254,2357.0,2356.8,2.58937]
[1726190766428,0.82254,2357.0,2356.8,1.38]
[1726190766617,0.82254,2357.0,2356.6,0.81581]
[1726190766618,0.7916,2356.9,2356.6,0.81581]
[1726190766818,0.42429,2356.8,2356.6,0.3915]
[1726190767116,0.42429,2356.8,2356.6,0.81581]
[1726190767319,0.3966,2356.7,2356.6,0.81581]
[1726190768224,0.3966,2356.7,2356.6,0.3915]
[1726190768714,0.3966,2356.7,2356.6,0.81581]
[1726190768918,0.3966,2356.7,2356.3,1.38]
[1726190769122,0.42434,2356.5,2356.2,4.3904]
[1726190769312,0.42433,2356.6,2356.3,1.80436]
[1726190769807,0.42433,2356.5,2356.3,1.80436]
[1726190771319,0.3966,2356.7,2356.3,1.38]
[1726190771620,0.8209,2356.7,2356.5,0.42433]
[1726190771812,0.8209,2356.7,2356.6,0.3961]
[1726190772417,5.0641,2356.7,2356.6,0.3961]
[1726190774627,5.0641,2356.7,2356.4,1.38]
[1726190774628,0.42432,2356.6,2356.4,1.80435]
[1726190775416,0.8209,2356.7,2356.5,0.42432]
[1726190775814,0.3966,2356.7,2356.6,0.79881]
[1726190776010,0.3966,2356.7,2356.6,0.3745]
[1726190776214,1.4154312,2356.9,2356.6,0.3745]
[1726190776416,1.3802612,2356.9,2356.6,0.3745]
[1726190776718,1.3802612,2356.9,2356.7,0.782]
[1726190776719,1.8045312,2356.9,2356.7,0.782]
[1726190778212,0.42428,2356.8,2356.7,0.782]
[1726190781433,0.4243,2356.7,2356.6,0.3745]
[1726190782330,3.6321,2356.7,2356.6,0.3745]
[1726190783334,3.6321,2356.7,2356.1,4.32171019]
[1726190783335,0.42436,2356.4,2356.1,4.32171019]
[1726190783530,0.3996,2356.3,2356.2,0.80508]
[1726190785632,0.42434,2356.5,2356.2,0.80508]
[1726190786333,0.42434,2356.5,2356.3,0.42437]
[1726190786551,0.42434,2356.5,2356.4,0.392]
[1726190788339,0.62299364,2356.5,2356.4,0.392]
[1726190789150,0.42434,2356.5,2356.4,0.392]
[1726190792249,0.3811,2356.6,2356.4,0.392]
[1726190792550,3.5889,2356.6,2356.4,0.392]
[1726190792851,4.01321,2356.6,2356.5,0.3824]
[1726190794652,0.42433,2356.5,2356.4,0.392]
[1726190794855,0.42433,2356.5,2356.4,0.7812]
[1726190795661,0.80542,2356.6,2356.4,1.20555]
[1726190795855,0.3811,2356.6,2356.5,0.42433]
[1726190796056,0.3811,2356.6,2356.5,0.80593]
[1726190796754,0.8906,2356.9,2356.5,0.3816]
[1726190796962,0.82618,2356.8,2356.6,1.80431]
[1726190797354,0.82618,2356.8,2356.7,0.3693]
[1726190797556,0.4019,2356.8,2356.7,0.7936]
[1726190797959,0.62029746,2356.9,2356.7,0.7936]
[1726190798265,1.01069746,2356.9,2356.7,0.7936]
[1726190799662,1.01069746,2356.9,2356.8,0.3739]
[1726190803470,1.01069746,2356.9,2356.7,0.3693]
[1726190808670,0.58643746,2356.9,2356.5,0.80592]
[1726190808971,0.42431,2356.7,2356.5,1.19113]
[1726190809474,0.3993,2356.6,2356.5,1.19113]
[1726190809973,0.3993,2356.6,2356.5,5.43433]
[1726190818570,3.2078,2356.8,2356.5,5.43433]
[1726190818770,3.2078,2356.8,2356.7,0.4243]
[1726190819173,3.63208,2356.8,2356.7,0.4243]
[1726190819784,3.2078,2356.8,2356.7,0.4243]
[1726190820681,3.63208,2356.8,2356.7,0.4243]
[1726190820885,3.2078,2356.8,2356.7,0.4243]
[1726190821088,3.2078,2356.8,2356.7,0.811]
[1726190822084,0.81547,2356.9,2356.7,0.811]
[1726190822485,0.81547,2356.9,2356.8,0.3704]
[1726190825791,0.81547,2356.9,2356.7,0.3867]
[1726190826094,0.81547,2356.9,2356.7,0.81099]
[1726190827592,0.3912,2356.9,2356.7,0.3867]
[1726190828383,0.42428,2356.8,2356.7,0.3867]
[1726190830687,0.4243,2356.7,2356.6,0.3946]
[1726190830993,0.8098,2356.7,2356.6,0.3946]
[1726190831484,0.81547,2356.9,2356.6,0.81891]
[1726190831795,0.81547,2356.9,2356.7,0.42429]
[1726190831796,0.3912,2356.9,2356.7,0.42429]
[1726190831989,0.3912,2356.9,2356.8,0.382]
[1726190833291,0.81546,2356.9,2356.8,0.382]
[1726190835299,0.3912,2356.9,2356.8,0.80628]
[1726190837195,0.3912,2356.9,2356.8,0.382]
[1726190837496,0.3912,2356.9,2356.8,0.80628]
[1726190839500,0.3912,2356.9,2356.8,0.382]
[1726190840292,0.3912,2356.9,2356.7,1.38]
[1726190840494,0.42428,2356.8,2356.6,1.93281019]
[1726190840695,0.81139,2356.8,2356.6,0.3946]
[1726190841112,0.81139,2356.8,2356.5,1.91983019]
[1726190841113,1.7671,2356.8,2356.5,1.49551019]
[1726190841300,0.82291,2356.7,2356.5,1.49551019]
[1726190841797,0.3698,2356.6,2356.5,1.49551019]
[1726190843498,0.3698,2356.6,2356.5,1.91984019]
[1726190844504,0.3698,2356.6,2356.5,3.0445178]
[1726190845004,0.3698,2356.6,2356.5,3.4688478]
[1726190845203,0.3698,2356.6,2356.5,3.46890707]
[1726190846912,0.3698,2356.6,2356.5,3.04457707]
[1726190847714,0.3698,2356.6,2356.5,3.46890707]
[1726190849316,0.3698,2356.6,2356.5,3.97649116]
[1726190850011,0.79411,2356.6,2356.5,3.55216116]
[1726190850217,0.3698,2356.6,2356.4,2.30420946]
[1726190850512,0.79412,2356.6,2356.4,2.30420946]
[1726190851608,0.79412,2356.6,2356.4,1.19024]
[1726190851807,0.79412,2356.6,2356.4,0.7659]
[1726190852008,0.79412,2356.6,2356.4,1.19025]
[1726190852611,0.98931588,2356.6,2356.4,1.19025]
[1726190853815,0.98931588,2356.6,2356.4,0.7659]
[1726190856420,0.98931588,2356.6,2356.4,1.19025]
[1726190856719,0.98931588,2356.6,2356.4,0.7659]
[1726190856909,0.98932588,2356.6,2356.4,0.7659]
[1726190857311,0.42433,2356.5,2356.4,0.7659]
[1726190857505,0.98931588,2356.6,2356.4,0.7659]
[1726190860313,0.42433,2356.5,2356.4,0.7659]
[1726190860517,2.36932588,2356.6,2356.4,0.7659]
[1726190861019,1.94499588,2356.6,2356.4,0.7659]
[1726190861416,2.36931588,2356.6,2356.4,0.7659]
[1726190863017,0.42433,2356.5,2356.4,0.7659]
[1726190874935,0.42435,2356.4,2356.3,0.3782]
[1726190878131,3.63215,2356.4,2356.3,0.3782]
[1726190880238,0.3698,2356.6,2356.4,0.42434]
[1726190880430,3.63209,2356.8,2356.5,1.19673]
[1726190880631,3.63209,2356.8,2356.5,0.7724]
[1726190880632,3.63208,2356.8,2356.5,0.7724]
[1726190880937,0.4243,2356.7,2356.5,1.19672]
[1726190881338,3.2078,2356.8,2356.6,1.8043]
[1726190881532,3.2078,2356.8,2356.7,0.7971]
[1726190881734,3.2078,2356.8,2356.7,6.4203]
[1726190884556,0.42423,2357.1,2356.8,0.42427]
[1726190884841,0.42423,2357.1,2356.9,0.4021]
[1726190885036,0.42423,2357.1,2356.9,0.8112]
[1726190885242,0.42423,2357.1,2356.9,1.23546]
[1726190885642,0.42423,2357.1,2356.9,0.8112]
[1726190886545,0.42423,2357.1,2356.9,1.23546]
[1726190892742,3.606,2357.2,2356.9,0.8112]
[1726190892949,3.606,2357.2,2357.1,0.42422]
[1726190893135,3.2078,2357.2,2357.1,0.42422]
[1726190893338,3.2078,2357.2,2357.1,0.81142]
[1726190893535,0.42419,2357.3,2357.1,0.81142]
[1726190893949,0.42419,2357.3,2357.2,0.3723]
[1726190895849,1.79843795,2357.4,2357.2,0.79651]
[1726190896348,0.3847,2357.4,2357.3,0.42419]
[1726190896546,0.3847,2357.4,2357.3,0.83299]
[1726190897146,3.63196,2357.5,2357.3,0.83299]
[1726190897344,4.01626,2357.5,2357.3,0.83299]
[1726190897549,4.01626,2357.5,2357.3,0.4088]
[1726190898253,4.01626,2357.5,2357.3,0.83299]
[1726190899357,4.01625,2357.5,2357.3,0.83298]
[1726190901349,3.5921,2357.5,2357.3,0.83298]
[1726190901662,4.01626,2357.5,2357.3,0.83298]
[1726190902756,0.42417,2357.4,2357.3,0.83298]
[1726190903055,3.5921,2357.5,2357.3,0.83298]
[1726190903056,4.01627,2357.5,2357.3,0.83298]
[1726190903649,0.42417,2357.4,2357.3,0.83298]
[1726190904256,4.01626,2357.5,2357.3,0.83298]
[1726190913062,0.80846,2357.5,2357.3,2.21298]
[1726190915067,0.80846,2357.5,2357.4,0.42417]
[1726190915256,0.3843,2357.5,2357.4,0.42417]
[1726190915570,0.42411,2357.8,2357.6,0.42413]
[1726190915773,0.4054,2357.7,2357.6,0.42413]
[1726190916966,0.20964996,2357.8,2357.7,0.42412]
[1726190917170,0.20964996,2357.8,2357.7,0.81372]
[1726190917367,0.42408,2357.9,2357.7,0.81372]
[1726190917568,0.21463708,2357.8,2357.7,0.81372]
[1726190919270,2.41105585,2358.0,2357.8,0.4241]
[1726190919571,1.03105585,2358.0,2357.8,0.42409]
[1726190919773,1.03105585,2358.0,2357.9,0.3759]
[1726190920077,1.2379682,2358.0,2357.9,0.3759]
[1726190921971,0.61231235,2358.0,2357.9,0.3759]
[1726190922372,1.03637235,2358.0,2357.7,1.7696]
[1726190922572,0.42409,2357.9,2357.7,2.19371]
[1726190922873,0.42409,2357.9,2357.7,0.81371]
[1726190923678,1.03638235,2358.0,2357.7,0.81371]
[1726190923872,1.03638235,2358.0,2357.8,0.4241]
[1726190924072,1.03638235,2358.0,2357.7,0.8137]
[1726190924272,0.42408,2357.9,2357.7,0.8137]
[1726190924777,4.24418235,2358.0,2357.8,0.4241]
[1726190925274,4.24418235,2358.0,2357.7,0.3896]
[1726190925475,4.24418235,2358.0,2357.8,0.42409]
[1726190926684,0.42408,2357.9,2357.7,0.8137]
[1726190928777,3.82011235,2358.0,2357.7,0.8137]
[1726190928778,4.24418235,2358.0,2357.8,0.42409]
[1726190928976,1.03638235,2358.0,2357.8,0.42409]
[1726190930181,0.42408,2357.9,2357.7,0.81371]
[1726190930792,4.24418235,2358.0,2357.8,0.4241]
[1726190930975,0.42408,2357.9,2357.7,0.81371]
[1726190932989,0.42408,2357.9,2357.7,0.8137]
[1726190933790,4.24418235,2358.0,2357.8,0.4241]
[1726190934283,4.24418235,2358.0,2357.9,0.3822]
[1726190935080,1.03638235,2358.0,2357.9,0.3822]
[1726190935288,0.42408,2357.9,2357.8,0.3795]
[1726190941399,0.4241,2357.8,2357.7,0.7718]
[1726190943097,0.4241,2357.8,2357.6,0.42413]
[1726190943297,0.61231235,2358.0,2357.7,0.4064]
[1726190943592,0.61231235,2358.0,2357.9,0.42408]
[1726190943991,0.61231235,2358.0,2357.9,0.79968]
[1726190944499,0.61231235,2358.0,2357.9,0.3756]
[1726190948110,0.4054,2358.0,2357.9,0.3756]
[1726190948290,0.61384031,2358.0,2357.9,0.3756]
[1726190948490,0.4054,2358.0,2357.9,0.3756]
[1726190949098,0.62031229,2358.0,2357.9,0.3756]
[1726190951495,1.04437229,2358.0,2357.9,0.3756]
[1726190953897,0.82946,2358.0,2357.9,0.3756]
[1726190954503,0.4054,2358.0,2357.9,0.79968]
[1726190954799,0.4054,2358.0,2357.9,0.3756]
[1726190954800,0.82946,2358.0,2357.9,0.3756]
[1726190955198,0.4054,2358.0,2357.9,0.79968]
[1726190955403,0.4054,2358.0,2357.9,0.3756]
[1726190955404,0.82946,2358.0,2357.9,0.3756]
[1726190965607,0.4054,2358.0,2357.9,0.79968]
[1726190965809,0.82946,2358.0,2357.9,0.79968]
[1726190966313,0.42408,2357.9,2357.7,0.4064]
[1726190966613,0.4241,2357.8,2357.6,0.42413]
[1726190966810,0.4241,2357.8,2357.6,0.80923]
[1726190967515,0.82948,2358.0,2357.8,0.42409]
[1726190968617,0.82947,2358.0,2357.8,0.42409]
[1726190969219,1.79831018,2358.0,2357.8,0.42409]
[1726190971118,0.4022,2357.9,2357.7,0.7784]
[1726190971318,0.4022,2357.9,2357.6,0.3851]
[1726190971319,0.4241,2357.8,2357.6,0.80923]
[1726190976820,0.3776,2357.7,2357.6,0.80923]
[1726190977827,0.3776,2357.7,2357.6,2.18923]
[1726190978430,1.19629,2357.9,2357.7,0.42411]
[1726190978634,1.19629,2357.9,2357.7,1.22851]
[1726190979221,1.19629,2357.9,2357.7,2.34247946]
[1726190980325,0.4241,2357.8,2357.7,2.34247946]
[1726190983434,0.4241,2357.8,2357.7,3.89669236]
[1726190983732,0.4241,2357.8,2357.7,3.89669232]
[1726190984335,1.19629,2357.9,2357.7,3.89669232]
[1726190984528,1.19629,2357.9,2357.7,2.34247946]
[1726190985729,0.4241,2357.8,2357.7,1.91836946]
[1726190985935,0.7722,2357.9,2357.7,2.34248946]
[1726190985936,1.19629,2357.9,2357.7,2.34248946]
[1726190986819,0.7722,2357.9,2357.7,1.51336946]
[1726190987031,1.19629,2357.9,2357.7,1.93748946]
[1726190987347,0.4241,2357.8,2357.7,1.11396946]
[1726190987533,1.19629,2357.9,2357.7,1.53808946]
[1726190988334,0.4241,2357.8,2357.7,1.11396946]
[1726190993535,0.62280074,2357.8,2357.7,1.11396946]
[1726190994331,0.62280074,2357.8,2357.6,0.81523]
[1726190994537,0.4058,2357.7,2357.6,0.81523]
[1726190994743,0.82992,2357.7,2357.6,0.89851826]
[1726190994929,0.82992,2357.7,2357.6,0.3911]
[1726190995835,0.4058,2357.7,2357.6,0.81523]
[1726191000346,0.82992,2357.7,2357.6,0.81523]
[1726191000638,0.42413,2357.6,2357.5,0.7788]
[1726191000838,0.82993,2357.7,2357.5,1.20294]
[1726191002055,0.82993,2357.7,2357.5,2.31690946]
[1726191002349,0.82993,2357.7,2357.5,1.20294]
[1726191003439,0.4058,2357.7,2357.6,0.42413]
[1726191005240,0.82992,2357.7,2357.5,1.20294]
[1726191005436,0.4058,2357.7,2357.5,0.7788]
[1726191005650,0.82992,2357.7,2357.5,0.7788]
[1726191005947,0.4058,2357.7,2357.5,1.89276946]
[1726191006248,0.4058,2357.7,2357.6,0.42413]
[1726191007344,0.4058,2357.7,2357.5,1.20294]
[1726191007955,0.4058,2357.7,2357.6,0.42413]
[1726191009742,0.4058,2357.7,2357.5,0.7788]